Cogmind - Beta 14 @@@ ROGUE MODE // 2024.08.19 @ 19:27:02 Player: Daffa0360 Result: Destroyed by Y-64 Sentinel with Wave Gun Performance ------------- Evolutions (5) 2500 Regions Visited (10) 2000 Robots Destroyed (58) 290 Value Destroyed (2126) 2126 Prototype IDs (30) 600 Alien Tech Used (0) 0 Bonus (300) 300 TOTAL SCORE: 7816 Bonus ------- Aligned with FarCom 300 Cogmind --------- Core Integrity 0/1000 Matter 145/300 Energy 150/150 System Corruption 29% Temperature Cool (9) Movement Treading (170) Location -5/Factory Parts ------- > --- POWER (2) -------- Micro Fission Core > --- PROPULSION (2) --- Armored Medium Treads > --- UTILITY (11) ----- Triangulator Advanced Terrain Scanner Advanced Melee Analysis Suite ECM Suite Improved Trap Extractor (0/6) Trap Reconfigurator > --- WEAPON (2) ------- Long-range Missile Launcher Lance > --- INVENTORY (5) ---- Enhanced Gauss Cannon Improved Plasma Cutter Heavy Pick Peak State ------------ > --- POWER ------------ Light Deuterium Engine Neutrino Core > --- PROPULSION ------- Improved Medium Treads Wheel > --- UTILITY ---------- Enhanced Optical Array Advanced Signal Interpreter Advanced Terrain Scanner Improved Terrain Scan Processor Advanced Melee Analysis Suite Improved Target Analyzer ECM Suite Improved Component Analysis Suite System Restoration Module Improved Trap Extractor Trap Reconfigurator > --- WEAPON ----------- Wave Gun Enhanced Gauss Cannon > --- INVENTORY -------- VSS Leg Heavy Rocket Launcher Improved Plasma Cutter Heavy Pick Lance [Rating: 81] Favorites ----------- Power Light Fission Core Engine Ion Engine Power Core Light Fission Core Propulsion Compact Wheel Treads Improved Medium Treads Leg Flexi-carbon Leg Wheel Compact Wheel Hover Unit Improved Airjet Flight Unit Xenon Bombardment Thruster Utility Improved Target Analyzer Device Gravity Neutralizer Storage Small Storage Unit Processor Improved Target Analyzer Hackware System Shield Protection Propulsion Shielding Weapon Lance Energy Gun Field Laser Energy Cannon Improved EM Pulse Cannon Ballistic Gun Makeshift Shrapnel Gun Ballistic Cannon Enhanced Gauss Cannon Launcher Heavy Rocket Launcher Special Weapon Flamer Slashing Weapon Katana Piercing Weapon Lance Build | -11 -10 -10 -10 -9 -8 -7 -6 -6 -6 -5 ------- Run | Yrd Mat Min Exi Min Mat Fac Fac Low Low Fac Slots Evolved 10 | . . . . . 4 2 2 . . 2 Power 1 | . . . . . . . . . . 1 Propulsion . | . . . . . . . . . . . Utility 9 | . . . . . 4 2 2 . . 1 Weapon . | . . . . . . . . . . . Parts Attached 150 | 6 . 1 1 3 5 37 29 13 13 42 Power 19 | 1 . 1 . . . 4 4 2 . 7 Engine 9 | 1 . 1 . . . 3 3 . . 1 Core 10 | . . . . . . 1 1 2 . 6 Reactor . | . . . . . . . . . . . Propulsion 26 | 2 . . . . . 9 6 3 1 5 Treads 2 | . . . . . . . . . . 2 Leg 5 | . . . . . . 2 . 2 . 1 Wheel 4 | 2 . . . . . . . . 1 1 Hover 11 | . . . . . . 7 4 . . . Flight 4 | . . . . . . . 2 1 . 1 Utility 55 | 1 . . 1 1 5 10 13 3 2 19 Device 34 | . . . 1 . 2 6 6 3 1 15 Storage 2 | 1 . . . . . . . . 1 . Processor 14 | . . . . . 2 4 5 . . 3 Hackware 2 | . . . . . 1 . 1 . . . Protection 3 | . . . . 1 . . 1 . . 1 Artifact . | . . . . . . . . . . . Weapon 50 | 2 . . . 2 . 14 6 5 10 11 Energy Gun 10 | 2 . . . . . 3 . 1 1 3 Energy Cannon 4 | . . . . . . . 1 1 2 . Ballistic Gun 8 | . . . . 2 . 3 . 1 1 1 Ballistic Cannon 2 | . . . . . . 1 . . . 1 Launcher 2 | . . . . . . . . . 1 1 Special Weapon 2 | . . . . . . . . . 2 . Impact Weapon . | . . . . . . . . . . . Slashing Weapon 11 | . . . . . . 2 4 2 3 . Piercing Weapon 11 | . . . . . . 5 1 . . 5 Special Melee Weapon . | . . . . . . . . . . . Unidentified Prototypes 5 | . . . . . . 3 2 . . . Parts Lost 46 | . . 3 . 1 . 8 1 7 . 26 Power 8 | . . 1 . . . 1 . 1 . 5 Propulsion 9 | . . 1 . . . 2 . 2 . 4 Utility 21 | . . . . . . 4 1 2 . 14 Weapon 8 | . . 1 . 1 . 1 . 2 . 3 Highest Loss Streak 11 | . . 3 . 1 . 7 1 7 . 11 To Critical Strikes . | . . . . . . . . . . . Average Slot Usage (%) 88 | . 85 76 64 82 81 88 97 87 99 81 Engine 3 | . 14 12 14 14 9 5 3 . . . Core 3 | . . . . . . . 2 5 6 4 Treads 1 | . . . . . . . . . . 4 Wheel 4 | . 28 24 14 14 9 2 . . 5 1 Hover 2 | . . . . . . 11 10 . . . Flight 1 | . . . . . . . 2 3 6 . Device 19 | . . . 7 11 6 13 14 16 20 29 Storage 3 | . 14 14 14 14 9 5 . . 5 . Processor 27 | . . . . . 15 23 38 40 40 26 Hackware 2 | . . . . . 5 7 8 . . . Energy Gun 3 | . 28 24 14 12 . 1 1 5 4 . Ballistic Gun 2 | . . . . 13 18 2 1 . 1 1 Ballistic Cannon 1 | . . . . . . 1 . . . 2 Slashing Weapon 2 | . . . . . . 3 10 6 2 . Piercing Weapon 2 | . . . . . . 4 . . . 5 Peak Build Rating 81 | 6 6 6 13 15 19 47 67 66 61 81 Average Rating 52 | 4 6 5 8 13 16 33 60 57 57 70 On Entrance 25 | . 6 6 4 13 7 19 41 66 60 57 Naked Turns . | . . . . . . . . . . . Heaviest Build 40 | 13 13 13 13 14 14 21 25 23 25 40 Greatest Support 40 | 32 32 32 16 16 16 30 30 40 20 30 Greatest Overweight (x) 4 | . . . . . . 3 2 4 1 4 Average Overweight (x) . | . . . . . . . . . . . Largest Inventory Capacity 8 | 8 8 8 8 8 8 8 5 5 8 8 Average Capacity 6 | 6 8 8 8 8 8 7 5 5 7 5 Most Carried 8 | 5 5 8 8 8 8 8 5 5 8 8 Average Carried 5 | 1 4 5 7 7 7 6 4 4 7 4 Final Capacity 8 | 8 8 8 8 8 8 5 5 5 8 5 Final Carried 8 | 4 5 7 7 7 8 5 5 5 8 3 Class Distribution -------------------- 30% | Mutant 21% | Derelict-Mutant 11% | Assassin 9% | Infiltrator-Gladiator 6% | Gladiator 5% | Skirmisher 5% | Hacker-Gladiator 4% | Scout Dominant Class ---------------- Mutant | -10/Materials Mutant | -10/Mines Mutant | -10/Exiles Mutant | -9/Mines Skirmisher | -8/Materials Scout | -7/Factory Gladiator | -6/Factory Mutant | -6/Lower Caves Derelict-Mutant | -6/Lower Caves Assassin | -5/Factory Resources | -11 -10 -10 -10 -9 -8 -7 -6 -6 -6 -5 ----------- Run | Yrd Mat Min Exi Min Mat Fac Fac Low Low Fac Matter Collected 2047 | 260 . 10 . 61 . 368 289 287 250 522 Remotely . | . . . . . . . . . . . Salvage Created 2361 | 61 105 147 . 126 . 294 560 152 243 673 Parts 140 | 12 3 9 . 18 . 19 23 9 10 37 Haulers Intercepted . | . . . . . . . . . . . Recyclers Shooed 1 | . . . . . . . . . . 1 Parts Field Recycled . | . . . . . . . . . . . Retrieved Matter . | . . . . . . . . . . . Parts Self-Destructed 13 | . . . . . . . . 8 5 . Prevented 13 | . . . . . . . . 8 5 . Kills | -11 -10 -10 -10 -9 -8 -7 -6 -6 -6 -5 ------- Run | Yrd Mat Min Exi Min Mat Fac Fac Low Low Fac Combat Hostiles Destroyed 47 | . 2 6 . 7 . 6 5 3 2 16 Melee 18 | . . . . . . 4 5 3 . 6 Guns 18 | . 2 5 . 7 . 2 . . . 2 Cannons 7 | . . . . . . . . . 2 5 AOE 3 | . . . . . . . . . . 3 Classes Destroyed 8 | 1 1 1 . . . 2 2 . 1 . Tunneler 6 | 5 . . . . . . . . . 1 Recycler 3 | . . . . . . . 2 . . 1 Watcher 2 | . . . . . . . 1 . . 1 Swarmer 18 | . . 4 . 6 . . . . . 8 Grunt 11 | . 2 2 . 1 . 1 3 2 . . Duelist 2 | . . . . . . 2 . . . . Hunter 3 | . . . . . . . . . 2 1 Programmer 13 | . . . . . . 3 2 1 . 7 Best Kill Streak 5 | 5 1 4 . 4 . 3 3 2 1 4 Combat Bots Only 4 | . 1 4 . 4 . 3 2 2 1 4 Max Kills in Single Turn 3 | 2 1 1 . 1 . 1 1 1 1 3 Gunslinging . | . . . . . . . . . . . Exploded 3 | . . . . . . . . . . 3 Melee 1 | . . . . . . 1 1 1 . 1 Uniques/NPCs Destroyed . | . . . . . . . . . . . Combat | -11 -10 -10 -10 -9 -8 -7 -6 -6 -6 -5 -------- Run | Yrd Mat Min Exi Min Mat Fac Fac Low Low Fac Hostile Shots Fired 399 | . 10 35 . 31 . 61 24 58 18 162 Missed 93 | . 3 7 . 9 . 15 3 11 6 39 Damage Taken 6242 | . 113 287 . 180 . 1058 371 855 214 3164 Core 2112 | . . 132 . 32 . 479 104 311 44 1010 Absorbed by Shields . | . . . . . . . . . . . Redirected to Shielding 5 | . . . . . . 5 . . . . Core Remaining (%) 62 | 100 . . . 34 100 31 . . 46 . Volleys Fired 105 | 6 7 21 . 20 . 5 5 7 9 25 Largest 2 | 2 2 2 . 2 . 2 2 1 2 2 Hottest 138 | 90 90 90 . 70 . 65 45 63 132 138 Shots Fired 190 | 12 14 38 . 37 . 7 10 10 19 43 Gun 160 | 12 14 38 . 37 . 7 10 10 11 21 Cannon 26 | . . . . . . . . . 8 18 Launcher 4 | . . . . . . . . . . 4 Special . | . . . . . . . . . . . Kinetic 77 | . . . . 28 . 4 5 7 5 28 Thermal 101 | 12 14 38 . 9 . 3 5 3 6 11 Explosive 4 | . . . . . . . . . . 4 Electromagnetic 8 | . . . . . . . . . 8 . Robot Hit Streak 12 | 3 11 12 . 9 . 7 8 4 4 9 Robot Miss Streak 7 | 1 1 7 . 4 . . 2 1 2 5 Penetration Max . | . . . . . . . . . . . Secondary Targets 2 | . . . . 2 . . . . . . Max Gunslinging Chain 1 | . . . . 1 . . . . . . Shots Hit Robots 196 | 5 12 22 . 20 . 30 23 19 11 54 Core Hits 89 | 5 5 8 . 10 . 11 11 6 6 27 Critical Kills 1 | . . . . . . . 1 . . . Critical Parts Destroyed . | . . . . . . . . . . . Critical Strikes 18 | 1 . 1 . 1 . 2 2 3 1 7 Burn 4 | 1 . 1 . 1 . . . . 1 . Destroy 1 | . . . . . . . 1 . . . Blast 2 | . . . . . . . . . . 2 Sever 5 | . . . . . . 1 1 3 . . Impale 6 | . . . . . . 1 . . . 5 Melee Attacks 215 | . . . . . . 38 37 27 23 90 Impact . | . . . . . . . . . . . Slashing 95 | . . . . . . 10 35 27 23 . Piercing 120 | . . . . . . 28 2 . . 90 Sneak Attacks 4 | . . . . . . . 2 1 . 1 Combat Hostiles 1 | . . . . . . . . 1 . . Follow-up Attacks 8 | . . . . . . 3 4 1 . . Damage Inflicted 5556 | 92 142 256 . 185 . 765 821 724 457 2114 Guns 1440 | 92 142 256 . 185 . 146 111 132 50 326 Cannons 650 | . . . . . . . . . 152 498 Explosions 335 | . . . . . . . . . . 335 Melee 3131 | . . . . . . 619 710 592 255 955 Ramming . | . . . . . . . . . . . Kinetic 1114 | . . . . 111 . 85 53 114 . 751 Thermal 824 | 92 142 256 . 74 . 61 58 18 50 73 Explosive 335 | . . . . . . . . . . 335 Electromagnetic 152 | . . . . . . . . . 152 . Impact . | . . . . . . . . . . . Slashing 1769 | . . . . . . 212 710 592 255 . Piercing 1362 | . . . . . . 407 . . . 955 Highest Corruption 29 | . . . . . . 3 9 4 4 29 Average Corruption 6 | . . . . . . 2 5 3 4 12 Corruption Purged 26 | . . . . . . . 7 . . 19 Corruption Blocked 4 | . . . . . . . . . . 4 Effects 153 | . . . . . . 1 26 19 48 59 Message Errors 35 | . . . . . . 1 5 3 11 15 Matter Fused 44 | . . . . . . . 8 10 10 16 Heat Flow Errors 16 | . . . . . . . 6 2 1 7 Energy Discharges 19 | . . . . . . . 4 1 7 7 Parts Fused 3 | . . . . . . . 1 . 2 . Data Loss (minor) 17 | . . . . . . . 2 . 8 7 Data Loss (major) 7 | . . . . . . . . . 3 4 Misfires 7 | . . . . . . . . 3 4 . Alerts 4 | . . . . . . . . . 1 3 Weapon Failures 1 | . . . . . . . . . 1 . Overload Shots . | . . . . . . . . . . . Overflow Damage 285 | . . . . . . 10 40 24 49 162 Projectiles 42 | . . . . . . . . . . 42 Explosions . | . . . . . . . . . . . Melee 243 | . . . . . . 10 40 24 49 120 Knockbacks 5 | . . . . . . . . . . 5 Impact . | . . . . . . . . . . . Kinetic 5 | . . . . . . . . . . 5 Secondary . | . . . . . . . . . . . Self-Inflicted Damage . | . . . . . . . . . . . Shots . | . . . . . . . . . . . Rammed . | . . . . . . . . . . . Targets Rammed . | . . . . . . . . . . . Kicked . | . . . . . . . . . . . Crushed . | . . . . . . . . . . . Highest Temperature 418 | 80 195 216 . 100 . . 235 136 135 418 Average Temperature 88 | 29 85 87 . 42 . . 99 48 55 136 Received Heat Transfer 556 | . 60 81 . 6 . 90 115 186 . 18 Siege Activations . | . . . . . . . . . . . Robots Corrupted . | . . . . . . . . . . . Combat Hostiles . | . . . . . . . . . . . Parts Fried . | . . . . . . . . . . . Impact Corruptions . | . . . . . . . . . . . Robots Melted 1 | . . 1 . . . . . . . . Combat Hostiles 1 | . . 1 . . . . . . . . Parts Melted 6 | 2 . 1 . 2 . . . . 1 . Heat Transferred 2265 | 310 360 744 . 296 . 111 111 37 185 111 Parts Sabotaged . | . . . . . . . . . . . Parts Stolen . | . . . . . . . . . . . Parts Stripped . | . . . . . . . . . . . Power Chain Reactions . | . . . . . . . . . . . Alert | -11 -10 -10 -10 -9 -8 -7 -6 -6 -6 -5 ------- Run | Yrd Mat Min Exi Min Mat Fac Fac Low Low Fac Peak Influence 249 | 25 112 178 . 170 104 105 162 . . 249 Initial 52 | . 16 43 . . 52 46 46 . . . Average 64 | 7 62 117 . 23 72 45 55 . . 81 Maximum Alert Level 1 | . . . . . . . . . . 1 Low Security (%) 99 | 100 100 100 . 100 100 100 100 . . 99 Level 1 . | . . . . . . . . . . . Level 2 . | . . . . . . . . . . . Level 3 . | . . . . . . . . . . . Level 4 . | . . . . . . . . . . . Level 5 . | . . . . . . . . . . . High Security . | . . . . . . . . . . . Max Security . | . . . . . . . . . . . Squads Dispatched 16 | . 1 . . . . 3 4 . . 8 Investigation 4 | . 1 . . . . . 1 . . 2 Extermination 10 | . . . . . . 3 2 . . 5 Reinforcement 1 | . . . . . . . 1 . . . Assault 1 | . . . . . . . . . . 1 Garrison . | . . . . . . . . . . . Intercept . | . . . . . . . . . . . Searches Triggered . | . . . . . . . . . . . Construction Impeded . | . . . . . . . . . . . Haulers Reinforced . | . . . . . . . . . . . Active Scanning Responses . | . . . . . . . . . . . Cargo Convoy Interrupts 1 | . . . . . . . . . . 1 Stealth | -11 -10 -10 -10 -9 -8 -7 -6 -6 -6 -5 --------- Run | Yrd Mat Min Exi Min Mat Fac Fac Low Low Fac Distress Signals 3 | . 2 . . . . . . . . 1 Communications Jammed . | . . . . . . . . . . . Distress Signals . | . . . . . . . . . . . Times Spotted 77 | . 5 7 . 11 2 12 8 3 2 27 Peak Tracking Total 7 | . 4 4 . 7 2 3 3 3 1 6 Tactical Retreats 6 | . . 1 . 2 . . . . . 3 Traps | -11 -10 -10 -10 -9 -8 -7 -6 -6 -6 -5 ------- Run | Yrd Mat Min Exi Min Mat Fac Fac Low Low Fac Traps Triggered 9 | . 1 . . . . 1 4 . . 3 Indirectly . | . . . . . . . . . . . Trap Hack Attempts . | . . . . . . . . . . . Triggered . | . . . . . . . . . . . Disarmed . | . . . . . . . . . . . Reprogrammed . | . . . . . . . . . . . Reused 6 | . . . . . . . . . . 6 Traps Reconfigurated 17 | . . . . . 6 2 . . . 9 Traps Extracted . | . . . . . . . . . . . Installed . | . . . . . . . . . . . Triggered 13 | . . . . . . . . 5 . 8 Machines | -11 -10 -10 -10 -9 -8 -7 -6 -6 -6 -5 ---------- Run | Yrd Mat Min Exi Min Mat Fac Fac Low Low Fac Machines Disabled 3 | . . . . . . 1 . . . 2 Max in Single Turn 1 | . . . . . . 1 . . . 1 Garrison Access 1 | . . . . . . . . . . 1 Machines Repaired . | . . . . . . . . . . . Machines Dismantled . | . . . . . . . . . . . Machines Sabotaged . | . . . . . . . . . . . Overloaded Fab Kills . | . . . . . . . . . . . Hacking | -11 -10 -10 -10 -9 -8 -7 -6 -6 -6 -5 --------- Run | Yrd Mat Min Exi Min Mat Fac Fac Low Low Fac Machines Accessed 22 | . 1 . 1 . 4 8 2 . . 6 Terminals 13 | . 1 . . . 4 3 2 . . 3 Fabricators 5 | . . . . . . 3 . . . 2 Repair Stations 1 | . . . . . . 1 . . . . Recycling Units . | . . . . . . . . . . . Scanalyzers 1 | . . . . . . 1 . . . . Garrison Access 1 | . . . . . . . . . . 1 Total Hacks 77 | . 2 . 1 . 20 34 6 . . 14 Successful 42 | . 1 . 1 . 12 20 3 . . 5 Failed 35 | . 1 . . . 8 14 3 . . 9 Catastrophic 5 | . . . . . 2 1 . . . 2 Database Lockouts . | . . . . . . . . . . . Manual 21 | . . . 1 . 15 4 . . . 1 Terminals 49 | . 2 . . . 20 15 6 . . 6 Fabricators 11 | . . . . . . 4 . . . 7 Repair Stations 1 | . . . . . . 1 . . . . Recycling Units . | . . . . . . . . . . . Scanalyzers 14 | . . . . . . 14 . . . . Garrison Access 1 | . . . . . . . . . . 1 Terminal Hacks 19 | . 1 . 1 . 7 6 3 . . 1 Record 5 | . . . . . 2 . 2 . . 1 Part Schematic 4 | . . . . . 1 3 . . . . Robot Schematic 1 | . . . . . . 1 . . . . Prototype ID Bank 1 | . . . . . 1 . . . . . Open DSF 1 | . . . . . . . 1 . . . Branch Access Points 2 | . 1 . . . 1 . . . . . Emergency Access Points 2 | . . . . . 1 1 . . . . Alert Level 1 | . . . . . . 1 . . . . Locate Traps 1 | . . . . . 1 . . . . . Derelict Proto ID Bank 1 | . . . 1 . . . . . . . Fabricator Hacks 4 | . . . . . . . . . . 4 Load Schematic 2 | . . . . . . . . . . 2 Build 2 | . . . . . . . . . . 2 Repair Station Hacks 1 | . . . . . . 1 . . . . Refit 1 | . . . . . . 1 . . . . Recycling Unit Hacks . | . . . . . . . . . . . Scanalyzer 12 | . . . . . . 12 . . . . Insert Component 6 | . . . . . . 6 . . . . Analyze 6 | . . . . . . 6 . . . . Garrison Access Hacks . | . . . . . . . . . . . Unauthorized Hacks 6 | . . . . . 5 1 . . . . Terminals 6 | . . . . . 5 1 . . . . Assimilate 4 | . . . . . 3 1 . . . . Botnet 2 | . . . . . 2 . . . . . Fabricators . | . . . . . . . . . . . Repair Stations . | . . . . . . . . . . . Recycling Units . | . . . . . . . . . . . Scanalyzers . | . . . . . . . . . . . Garrison Access . | . . . . . . . . . . . Data Cores Recovered . | . . . . . . . . . . . Used . | . . . . . . . . . . . Hacking Detections 19 | . 1 . . . 4 7 1 . . 6 Full Trace Events 3 | . . . . . . . 1 . . 2 Feedback Events 2 | . . . . . . . 1 . . 1 Corruption 2 | . . . . . . . 1 . . 1 Feedback Blocked . | . . . . . . . . . . . Robot Schematics Acquired 1 | . . . . . . 1 . . . . Robots Built . | . . . . . . . . . . . Authchips . | . . . . . . . . . . . Time . | . . . . . . . . . . . Total Robot Build Rating . | . . . . . . . . . . . Part Schematics Acquired 10 | . . . . . 1 9 . . . . Parts Built 4 | . . . . . . . . . . 4 Authchips . | . . . . . . . . . . . Time 201 | . . . . . . . . . . 201 Total Part Build Rating 22 | . . . . . . . . . . 22 Parts Repaired . | . . . . . . . . . . . Time . | . . . . . . . . . . . Parts Recycled . | . . . . . . . . . . . Recycled Matter . | . . . . . . . . . . . Retrieved Matter . | . . . . . . . . . . . Retrieved Components . | . . . . . . . . . . . Parts Scanalyzed 6 | . . . . . . 6 . . . . Part Schematics Acquired 6 | . . . . . . 6 . . . . Parts Damaged 1 | . . . . . . 1 . . . . Bothacking | -11 -10 -10 -10 -9 -8 -7 -6 -6 -6 -5 ------------ Run | Yrd Mat Min Exi Min Mat Fac Fac Low Low Fac Used RIF Installer . | . . . . . . . . . . . Robots Hacked . | . . . . . . . . . . . Non-combat . | . . . . . . . . . . . Combat . | . . . . . . . . . . . Robot Hacks Applied . | . . . . . . . . . . . Relay Couplers Released 1 | . . . . . . . . . . 1 Machine Destruction 1 | . . . . . . . . . . 1 Fabnet Peak Effective % . | . . . . . . . . . . . Robots Rewired . | . . . . . . . . . . . Allies Hacked . | . . . . . . . . . . . Hacks Repelled . | . . . . . . . . . . . Allies | -11 -10 -10 -10 -9 -8 -7 -6 -6 -6 -5 -------- Run | Yrd Mat Min Exi Min Mat Fac Fac Low Low Fac Total Allies . | . . . . . . . . . . . Largest Group . | . . . . . . . . . . . Highest-Rated Group . | . . . . . . . . . . . Highest-Rated Ally . | . . . . . . . . . . . Total Orders . | . . . . . . . . . . . Ally Attacks . | . . . . . . . . . . . Total Damage . | . . . . . . . . . . . Kills . | . . . . . . . . . . . Allies Corrupted . | . . . . . . . . . . . Allies Melted . | . . . . . . . . . . . Intel | -11 -10 -10 -10 -9 -8 -7 -6 -6 -6 -5 ------- Run | Yrd Mat Min Exi Min Mat Fac Fac Low Low Fac Robot Analysis Total . | . . . . . . . . . . . Derelict Logs Recovered 2 | . . . . 1 . . . . 1 . Drone Launches . | . . . . . . . . . . . Drone Recoveries . | . . . . . . . . . . . Exploration | -11 -10 -10 -10 -9 -8 -7 -6 -6 -6 -5 ------------- Run | Yrd Mat Min Exi Min Mat Fac Fac Low Low Fac Turns Passed 11443 | 127 139 269 234 889 244 1124 1714 740 2194 3769 Spaces Moved 7618 | 120 90 183 233 548 213 1011 1395 805 1348 1672 Core 81 | 51 . . . . . 7 . 8 . 15 Treads 748 | . . . . . . . . . . 748 Legs 468 | . . . . . . 24 . 249 165 30 Wheels 3453 | 69 90 183 233 548 213 260 . . 1110 747 Hover 1969 | . . . . . . 720 1249 . . . Flight 899 | . . . . . . . 146 548 73 132 Fastest Speed 37 | 50 100 100 100 100 100 50 37 37 50 40 Average Speed 95 | 78 100 100 100 100 100 72 58 73 115 133 Slowest Speed 360 | 100 100 100 100 100 100 245 170 250 190 360 Overloaded Moves . | . . . . . . . . . . . Propulsion Burnouts . | . . . . . . . . . . . Robots Hopped . | . . . . . . . . . . . Cave-ins Triggered 2 | . . . . . . . . . . 2 Exploration Rate (%) 46 | 6 29 32 60 79 22 22 32 88 98 39 Regions Visited 10 Branch Regions 5 Pre-discovered Areas 3 | . . . . 2 . . . . 1 . Known Exits Taken 1 | . 1 . . . . . . . . . Unknown Exits Taken 9 | 1 . 1 1 1 1 1 1 1 1 . Scrap Searched 10 | . . 1 . 1 . . . 3 5 . Spaces Dug 104 | . . . . . . 5 12 12 20 55 Terrain Destroyed 135 | . . . . . . 5 12 12 20 86 Melee 103 | . . . . . . 5 12 12 20 54 Projectile 6 | . . . . . . . . . . 6 AOE 26 | . . . . . . . . . . 26 Terrain Rammed . | . . . . . . . . . . . Walls Destroyed . | . . . . . . . . . . . Machines Disabled . | . . . . . . . . . . . Actions | -11 -10 -10 -10 -9 -8 -7 -6 -6 -6 -5 --------- Run | Yrd Mat Min Exi Min Mat Fac Fac Low Low Fac Total 11235 | 140 125 231 234 857 244 1342 2231 913 1926 2992 Wait 2979 | . 28 24 . 285 20 223 737 50 523 1089 Move 7605 | 119 89 182 232 547 212 1009 1394 804 1347 1670 Hop . | . . . . . . . . . . . Pick Up 68 | 9 1 3 1 2 5 11 5 6 5 20 Fast Attach 64 | 1 . . . . 1 16 15 4 5 22 Attach 40 | 5 . 1 1 2 4 5 3 7 1 11 Detach 4 | . . . . . 1 1 . 2 . . Swap 46 | . . . . 1 . 16 11 2 7 9 Drop 72 | . . . . . 1 21 18 5 6 21 Fire 105 | 6 7 21 . 20 . 5 5 7 9 25 Melee 200 | . . . . . . 34 30 26 23 87 Ram . | . . . . . . . . . . . Kick . | . . . . . . . . . . . Crush . | . . . . . . . . . . . Escape Stasis 52 | . . . . . . 1 13 . . 38 Rewire . | . . . . . . . . . . . Trap . | . . . . . . . . . . . Miscellaneous . | . . . . . . . . . . . Route ------- -11/Scrapyard -10/Materials (discovered 2 exits: *Min x2) -10/Mines -10/Exiles -9/Mines -8/Materials -7/Factory (discovered 2 exits: *Fac x2) -6/Factory -6/Lower Caves -6/Lower Caves (discovered 2 exits: *Fac / [*Zio]) -5/Factory History --------- Turn | Location | Event 5 | -11/Scrapyard | Discovered new exit (range 15) 128 | -11/Scrapyard | Entered Materials 149 | -10/Materials | Identified exit to Mines 267 | -10/Materials | Entered Mines 288 | -10/Mines | Met a Derelict bent on vengeance 300 | -10/Mines | Build established: Mutant 387 | -10/Mines | Deemed a non-threat by the Exiles lab entrance 387 | -10/Mines | Discovered new exit (range 5) 478 | -10/Mines | Core integrity fell below 50% 506 | -10/Mines | Lost 3 parts (1p1n1w) 536 | -10/Mines | Entered Exiles 562 | -10/Exiles | Met 8R-AWN 578 | -10/Exiles | Met EX-HEX 606 | -10/Exiles | Met EX-BIN 618 | -10/Exiles | Aligned with FarCom system 619 | -10/Exiles | Given EX-Vault access code 642 | -10/Exiles | Opened EX-Vault 649 | -10/Exiles | Found Trap Reconfigurator 669 | -10/Exiles | Warned to stay clear of 0b10 Research branches 685 | -10/Exiles | Exiles lab attacked by MAIN.C 751 | -10/Exiles | Discovered new exit (range 14) 770 | -10/Exiles | Left Exiles lab with Trap Reconfigurator 770 | -10/Exiles | Entered Mines 814 | -9/Mines | Received a Rocket Launcher from a helpful Derelict 1055 | -9/Mines | Learned location of Storage (-9) 1635 | -9/Mines | Discovered new exit (range 12) 1659 | -9/Mines | Entered Materials 1659 | -8/Materials | Evolved 4 slots: Utility x4 1882 | -8/Materials | Discovered new exit (range 8) 1903 | -8/Materials | Entered Factory 1903 | -7/Factory | Evolved 2 slots: Utility x2 2006 | -7/Factory | Build established: Skirmisher 2263 | -7/Factory | Discovered new exit (range 20) 2563 | -7/Factory | Build established: Scout 2762 | -7/Factory | Core integrity fell below 50% 2797 | -7/Factory | Lost 7 parts (1p1n4u1w) 2860 | -7/Factory | Discovered new exit (range 16) 3027 | -7/Factory | Entered another Factory area 3027 | -6/Factory | Evolved 2 slots: Utility x2 3697 | -6/Factory | Build established: Gladiator 4144 | -6/Factory | Discovered new exit (range 5) 4309 | -6/Factory | Build established: Hacker-Gladiator 4741 | -6/Factory | Entered Lower Caves 4815 | -6/Lower Caves | Lost 7 parts (1p2n2u2w) 5067 | -6/Lower Caves | Build established: Mutant 5346 | -6/Lower Caves | Discovered new exit (range 12) 5452 | -6/Lower Caves | Build established: Derelict-Mutant 5481 | -6/Lower Caves | Entered another Lower Caves area 5501 | -6/Lower Caves | Discovered new exit (range 19) 5527 | -6/Lower Caves | Core integrity fell below 50% 5951 | -6/Lower Caves | Discovered new exit (range 9) 6137 | -6/Lower Caves | Encountered a Warlord checkpoint 6909 | -6/Lower Caves | Learned location of Extension (-6) 7675 | -6/Lower Caves | Entered Factory 7675 | -5/Factory | Evolved 2 slots: Power x1, Utility x1 8071 | -5/Factory | Core integrity fell below 50% 8090 | -5/Factory | System corruption reached 10% 8122 | -5/Factory | Lost 11 parts (2p1n7u1w) 8331 | -5/Factory | Build established: Mutant 8562 | -5/Factory | Cargo convoy interrupted 9280 | -5/Factory | Build established: Assassin 9572 | -5/Factory | Found Launcher Loader 9777 | -5/Factory | Fabricated Imp. Dynamic Insulation System (x2) 9872 | -5/Factory | Fabricated Nuclear Pulse Thruster? 10090 | -5/Factory | Lost 3 parts (1p2n) 10258 | -5/Factory | Crushed by falling debris 10259 | -5/Factory | Core integrity fell below 20% 10289 | -5/Factory | Lost 5 parts (1p1n2u1w) 10661 | -5/Factory | Build established: Infiltrator-Gladiator 11406 | -5/Factory | Crushed by falling debris 11437 | -5/Factory | Lost 5 parts (1p3u1w) 11444 | -5/Factory | Destroyed by Y-64 Sentinel with Wave Gun Last Messages --------------- 11407_ System corrupted: Matter fused (-6). 11408_ U-05 Engineer builds a Wall. 11427_ T1ZSTIN>S<6LLACK&L7FYJXUPHDO J7O:8,K 11427_ ALERT: Rogue bot located, Programmers report to Factory Zone 6M. 11430_ C-30 ARC bursts open, deploying its payload. 11430_ S-27 Virus unfolds itself. 11434_ S-27 Virus destroyed. 11436_ U-05 Engineer builds a Door. 11437_ Penetrated by Slug. 11439_ K-01 Serf collects debris. 11439_ Slug penetrates Wall. 11440_ U-05 Engineer lays Concrete. 11441_ Slug penetrates Door. 11442_ PO1: CFEATTAGA:IKIM YZC#EF|9H 11442_ U-05 Engineer lays Concrete. 11442_ Penetrated by Slug. 11443_ U-05 Engineer lays Concrete. 11444_ Neutrino Reactor explodes. Map ----- +----------------------------------------------------+ | ?????????????????????????????????????????????????? | | ?????????????????????????????????????????????????? | | ?????????????????????????????????????????????????? | | ?????????????????????????????????????????????????? | | ?????????????????????????????????????????????????? | | ?????????????????????????????????????????????????? | | ?????????????????????????????????????????????????? | | ????????????????????????h?????#??????????????????? | | ?????????????????????????????????????????????????? | | ???????????????????????? ???????????????????????? | | ???????????????????????? h??#???????#????????????? | | ?????????????????????""" ???????????????????????? | | ????????? ???????????""" #??????????????????????? | | ????????????"???????? #??????????????????????? | | ?????????????? ?????? ] #?????????#????????????? | | ?????????????????????? #?#????????????????????? | | ????????????????????? #??????????????????????? | | "?????????????????"??<< ??????????????????????? | | ??????????????????"???< ???????????????????????? | | "????"??????????"?????< ?????????? ????????????? | | ??????????????????????? ??????????????????????? | | ?????????##?#??? ?????? ???????????????????????? | | ??????? ??????????######s#######?????????????????? | | ??????????#?#?????# #?????????????????? | | ????? ???????? ??## ! ! #?????????????????? | | ? ?? ??????#????# u @ #????#????????????? | | ?????? ??????#??# R #?????????????????? | | ?? ????? ???# =#?????#???????????? | | #####?###### ] #?????????????????? | | ### | [ #?#???????????????? | | """ ### [ Y #?????????????????? | | """ #?# [ #?#??#???? ???????? | | """ #?# #? #?????##??????????? | | """ #?# ## ! #???#?#????? ?????? | | ### ## ##????????????????? | | #?# ## #############?????????????????? | | ####### ## ### ##?#????#?????????#????????? | | ## "" # ##?????????????????#????????? | | ## """ ####???????????#???#???????????? | | """"" ## ##???????##????????????????????? | | ^ "" F" ## """ #?#????????????????????????????? | | ^ "" "" ## """ #?????????##???????????????????? | | ### """ #???????????????#??????????????? | | ### ##?????????????????????????????? | | """ ### #??????????????????????????????? | | """ ##########????#??#???????#??????????????? | | !/ """ #???????#???#??#??#???????????????? | | !/ """ ###??????????#????????????????????? | | ! #??????#??????????????????????????? | | #?###?????????????????????????????? | +----------------------------------------------------+ Best States ------------- Heat Dissipation 40 Energy Generation 28 Energy Capacity 355 Matter Stores 300 Matter Capacity 300 Sight Range 22 Robot Scan Range 16 Terrain Scan Range 20 Terrain Scan Density 110 ECM Strength 1 Power Amplification 20 Additional Mass Support 12 Base Temperature (-) 150 Corruption Block 15 Armor Coverage 225 Resistance: KI 25 Resistance: EX 25 Propulsion Shielding 33 Evasion (%) 62 Targeting Accuracy 6 Melee Accuracy 13 Target Analysis 9 Core Analysis 6 Recoil Reduction 1 Particle Charging 15 Force Boost 20 Defensive Hacking 20 Trap Extractor Capacity 6 Item Schematics ----------------- Plasma Cutter | -8/Materials | Hacked Flexi-carbon Leg | -7/Factory | Hacked Katana | -7/Factory | Scanalyzed Component Analysis Suite | -7/Factory | Scanalyzed Cld. Pulse Rifle | -7/Factory | Scanalyzed Target Analyzer | -7/Factory | Scanalyzed Microactuators | -7/Factory | Scanalyzed Imp. Light Armor Plating | -7/Factory | Scanalyzed Nuclear Pulse Thruster | -7/Factory | Hacked Hvy. Phase Cannon | -7/Factory | Hacked Robot Schematics ------------------ K-01 Serf | -7/Factory | Hacked Fabricated ------------ Imp. Dynamic Insulation System | x2 | -5/Factory | Preloaded Nuclear Pulse Thruster | x2 | -5/Factory Alien Tech Used ----------------- None Achievements -------------- None Challenges ------------ None Game ------ Seed GrapheneIonicScrapsphere Manual? 0 Play Time 01:36:15 Cumulative 50.2 hours Start 2024.08.19 @ 04:15:34 End 2024.08.19 @ 19:27:02 Sessions 5 Manual Loads 0 Difficulty Rogue Special Mode None Game No. 82 Rogue 78 Adventurer 4 Explorer 0 Win Type - Total 0 Types 0/0/0/0/0/0/0/0/0 Lore% 16 Gallery% 38 Achievement% 30 Wizard Run 0 Options --------- Layout 2 ASCII 0 Keyboard 0 Movement Mouse Keybinds 0 Fullscreen 2 Font 24/Smallcaps Map View 50x44 Zoom Use 0% Tactical HUD 1 Map Filters NONE Filters NONE Steam 1 RUN: 8ac4360f-d99d-4ce4-b040-1a8314156c5a